fUST/lending_fUST_20250525
["ID","MTS","AMOUNT","RATE_DAILY","PERIOD"]
[362239233,1748116243331,-345.08014761,0.00022465,2]
[362239235,1748116243341,-490.0,0.00022465,2]
[362239238,1748116243352,-430.0,0.00022465,2]
[362239240,1748116243361,-482.29,0.00022465,2]
[362239242,1748116243371,-430.0,0.00022465,2]
[362239244,1748116243380,-430.0,0.00022465,2]
[362239246,1748116243390,-639.39,0.00022465,2]
[362239249,1748116243400,-430.0,0.00022465,2]
[362239252,1748116243409,-510.0,0.00022465,2]
[362239255,1748116243419,-163.29155937,0.00022465,2]
[362239258,1748116243431,-346.70844063,0.00022465,2]
[362239261,1748116243441,-430.0,0.00022465,2]
[362239264,1748116243450,-217.62,0.00022465,2]
[362239267,1748116243460,-430.0,0.00022465,2]
[362239270,1748116243469,-430.0,0.00022465,2]
[362239274,1748116243479,-545.66,0.00022465,2]
[362239277,1748116243488,-430.0,0.00022465,2]
[362239280,1748116243498,-430.0,0.00022465,2]
[362239283,1748116243507,-430.0,0.00022465,2]
[362239287,1748116243517,-430.0,0.00022465,2]
[362239290,1748116243527,-430.0,0.00022465,2]
[362239293,1748116243536,-543.63,0.00022465,2]
[362239296,1748116243546,-461.19,0.00022465,2]
[362239299,1748116243555,-490.0,0.00022465,2]
[362239301,1748116243565,-723.01,0.00022465,2]
[362239304,1748116243574,-430.0,0.00022465,2]
[362239306,1748116243584,-430.0,0.00022465,2]
[362239310,1748116243595,-430.0,0.00022465,2]
[362239313,1748116243604,-500.09921486,0.00022465,2]
[362239314,1748116243615,-430.0,0.00022465,2]
[362239317,1748116243625,-430.0,0.00022465,2]
[362239320,1748116243634,-430.0,0.00022465,2]
[362239321,1748116243644,-779.45,0.00022465,2]
[362239322,1748116243653,-430.0,0.00022465,2]
[362239323,1748116243662,-430.0,0.00022465,2]
[362239324,1748116243672,-672.93,0.00022465,2]
[362239325,1748116243681,-430.0,0.00022465,2]
[362239326,1748116243690,-1083.96,0.00022465,2]
[362239328,1748116243700,-686.62,0.00022465,2]
[362239330,1748116243710,-787.43,0.00022465,2]
[362239332,1748116243719,-937.32,0.00022465,2]
[362239334,1748116243729,-717.95,0.00022465,2]
[362239337,1748116243741,-1787.91,0.00022465,2]
[362239339,1748116243751,-468.11,0.00022465,2]
[362239341,1748116243761,-430.0,0.00022465,2]
[362239343,1748116243770,-554.34,0.00022465,2]
[362239345,1748116243779,-587.87,0.00022465,2]
[362239347,1748116243789,-646.74,0.00022465,2]
[362239349,1748116243798,-430.0,0.00022465,2]
[362239351,1748116243808,-514.83,0.00022465,2]
[362239353,1748116243818,-430.0,0.00022465,2]
[362239360,1748116243941,-574.54,0.00022465,2]
[362239361,1748116243951,-490.0,0.00022465,2]
[362239362,1748116243961,-430.0,0.00022465,2]
[362239363,1748116243971,-258.12,0.00022465,2]
[362239364,1748116243981,-818.53,0.00022465,2]
[362239365,1748116243990,-250.0,0.000225,2]
[362239366,1748116243999,-1000.0,0.00022521,2]
[362239367,1748116244009,-1642.69105689,0.00022568,2]
[362239368,1748116244019,-207.4,0.00022672,2]
[362239369,1748116244028,-420.0,0.00022676,2]
[362239370,1748116244038,-430.0,0.00022739,2]
[362239371,1748116244047,-430.0,0.00022739,2]
[362239372,1748116244056,-525.34,0.00022739,2]
[362239373,1748116244065,-434.16,0.00022739,2]
[362239374,1748116244074,-430.0,0.00022739,2]
[362239375,1748116244084,-479.21,0.00022739,2]
[362239376,1748116244094,-430.0,0.00022739,2]
[362239377,1748116244103,-430.0,0.00022739,2]
[362239378,1748116244114,-730.03,0.00022739,2]
[362239379,1748116244123,-482.29,0.00022739,2]
[362239380,1748116244133,-430.0,0.00022739,2]
[362239381,1748116244143,-430.0,0.00022739,2]
[362239382,1748116244154,-639.39,0.00022739,2]
[362239383,1748116244163,-430.0,0.00022739,2]
[362239384,1748116244182,-384.0,0.00022739,2]
[362239385,1748116244195,-430.0,0.00022739,2]
[362239386,1748116244206,-430.0,0.00022739,2]
[362239387,1748116244216,-545.66,0.00022739,2]
[362239388,1748116244226,-430.0,0.00022739,2]
[362239389,1748116244237,-430.0,0.00022739,2]
[362239390,1748116244247,-274.24,0.00022739,2]
[362239391,1748116244257,-430.0,0.00022739,2]
[362239392,1748116244267,-430.0,0.00022739,2]
[362239393,1748116244278,-543.63,0.00022739,2]
[362239394,1748116244289,-461.19,0.00022739,2]
[362239395,1748116244299,-723.01,0.00022739,2]
[362239396,1748116244309,-430.0,0.00022739,2]
[362239397,1748116244324,-430.0,0.00022739,2]
[362239398,1748116244334,-430.0,0.00022739,2]
[362239399,1748116244345,-430.0,0.00022739,2]
[362239400,1748116244355,-430.0,0.00022739,2]
[362239401,1748116244365,-430.0,0.00022739,2]
[362239402,1748116244376,-779.45,0.00022739,2]
[362239403,1748116244386,-280.40054389,0.00022739,2]
[362239404,1748116244396,-430.0,0.00022739,2]
[362239405,1748116244406,-672.93,0.00022739,2]
[362239406,1748116244416,-430.0,0.00022739,2]
[362239407,1748116244426,-1083.96,0.00022739,2]
[362239408,1748116244436,-686.62,0.00022739,2]
[362239409,1748116244448,-787.43,0.00022739,2]
[362239410,1748116244458,-937.32,0.00022739,2]
[362239411,1748116244468,-717.95,0.00022739,2]
[362239412,1748116244479,-1787.91,0.00022739,2]
[362239413,1748116244489,-468.11,0.00022739,2]
[362239414,1748116244499,-430.0,0.00022739,2]
[362239415,1748116244509,-554.34,0.00022739,2]
[362239416,1748116244519,-587.87,0.00022739,2]
[362239417,1748116244529,-646.74,0.00022739,2]
[362239418,1748116244539,-430.0,0.00022739,2]
[362239419,1748116244549,-514.83,0.00022739,2]
[362239420,1748116244559,-430.0,0.00022739,2]
[362239421,1748116244569,-574.54,0.00022739,2]
[362239422,1748116244580,-430.0,0.00022739,2]
[362239423,1748116244590,-818.53,0.00022739,2]
[362239424,1748116244600,-430.0,0.00023013,2]
[362239425,1748116244610,-166.68638067,0.00023013,2]
[362239426,1748116244621,-434.16,0.00023013,2]
[362239427,1748116244631,-430.0,0.00023013,2]
[362239429,1748116244641,-479.21,0.00023013,2]
[362239431,1748116244651,-430.0,0.00023013,2]
[362239433,1748116244661,-430.0,0.00023013,2]
[362239435,1748116244671,-730.03,0.00023013,2]
[362239437,1748116244681,-482.29,0.00023013,2]
[362239439,1748116244691,-430.0,0.00023013,2]
[362239441,1748116244701,-430.0,0.00023013,2]
[362239443,1748116244711,-639.39,0.00023013,2]
[362239445,1748116244721,-430.0,0.00023013,2]
[362239447,1748116244731,-430.0,0.00023013,2]
[362239449,1748116244740,-399.61,0.00023013,2]
[362239451,1748116244750,-545.66,0.00023013,2]
[362239453,1748116244760,-430.0,0.00023013,2]
[362239455,1748116244770,-430.0,0.00023013,2]
[362239457,1748116244780,-430.0,0.00023013,2]
[362239459,1748116244791,-430.0,0.00023013,2]
[362239461,1748116244802,-543.63,0.00023013,2]
[362239464,1748116244811,-461.19,0.00023013,2]
[362239466,1748116244822,-723.01,0.00023013,2]
[362239468,1748116244831,-430.0,0.00023013,2]
[362239470,1748116244842,-430.0,0.00023013,2]
[362239472,1748116244852,-430.0,0.00023013,2]
[362239473,1748116244862,-430.0,0.00023013,2]
[362239474,1748116244873,-430.0,0.00023013,2]
[362239476,1748116244891,-430.0,0.00023013,2]
[362239478,1748116244901,-779.45,0.00023013,2]
[362239480,1748116244911,-430.0,0.00023013,2]
[362239482,1748116244922,-672.93,0.00023013,2]
[362239484,1748116244932,-430.0,0.00023013,2]
[362239486,1748116244942,-1083.96,0.00023013,2]
[362239488,1748116244952,-686.62,0.00023013,2]
[362239490,1748116244962,-787.43,0.00023013,2]
[362239492,1748116244971,-937.32,0.00023013,2]
[362239494,1748116244981,-717.95,0.00023013,2]
[362239496,1748116244991,-1787.91,0.00023013,2]
[362239498,1748116245000,-468.11,0.00023013,2]
[362239500,1748116245010,-430.0,0.00023013,2]
[362239502,1748116245019,-554.34,0.00023013,2]
[362239504,1748116245029,-587.87,0.00023013,2]
[362239506,1748116245038,-646.74,0.00023013,2]
[362239508,1748116245047,-430.0,0.00023013,2]
[362239511,1748116245058,-514.83,0.00023013,2]
[362239513,1748116245067,-430.0,0.00023013,2]
[362239514,1748116245076,-574.54,0.00023013,2]
[362239516,1748116245086,-430.0,0.00023013,2]
[362239519,1748116245096,-818.53,0.00023013,2]
[362239520,1748116245105,-1500.0,0.00023068,2]
[362239522,1748116245114,-700.0,0.0002316,2]
[362239524,1748116245124,-168.135149,0.00023182,2]
[362239526,1748116245133,-430.0,0.00023287,2]
[362239528,1748116245143,-434.16,0.00023287,2]
[362239530,1748116245157,-430.0,0.00023287,2]
[362239532,1748116245167,-479.21,0.00023287,2]
[362239534,1748116245176,-193.95723733,0.00023287,2]
[362239536,1748116245186,-430.0,0.00023287,2]
[362239538,1748116245195,-730.03,0.00023287,2]
[362239540,1748116245205,-482.29,0.00023287,2]
[362239542,1748116245215,-430.0,0.00023287,2]
[362239544,1748116245224,-430.0,0.00023287,2]
[362239546,1748116245234,-639.39,0.00023287,2]
[362239548,1748116245244,-430.0,0.00023287,2]
[362239550,1748116245253,-430.0,0.00023287,2]
[362239552,1748116245265,-545.66,0.00023287,2]
[362239554,1748116245274,-430.0,0.00023287,2]
[362239556,1748116245284,-430.0,0.00023287,2]
[362239558,1748116245294,-430.0,0.00023287,2]
[362239560,1748116245304,-543.63,0.00023287,2]
[362239562,1748116245313,-461.19,0.00023287,2]
[362239564,1748116245323,-723.01,0.00023287,2]
[362239566,1748116245332,-430.0,0.00023287,2]
[362239568,1748116245342,-430.0,0.00023287,2]
[362239570,1748116245352,-430.0,0.00023287,2]
[362239572,1748116245362,-430.0,0.00023287,2]
[362239574,1748116245371,-430.0,0.00023287,2]
[362239576,1748116245381,-430.0,0.00023287,2]
[362239578,1748116245391,-779.45,0.00023287,2]
[362239580,1748116245400,-430.0,0.00023287,2]
[362239582,1748116245410,-672.93,0.00023287,2]
[362239584,1748116245419,-430.0,0.00023287,2]
[362239586,1748116245429,-1083.96,0.00023287,2]
[362239588,1748116245439,-686.62,0.00023287,2]
[362239590,1748116245448,-787.43,0.00023287,2]
[362239592,1748116245457,-937.32,0.00023287,2]
[362239595,1748116245468,-717.95,0.00023287,2]
[362239596,1748116245477,-1787.91,0.00023287,2]
[362239598,1748116245487,-468.11,0.00023287,2]
[362239600,1748116245497,-430.0,0.00023287,2]
[362239602,1748116245506,-554.34,0.00023287,2]
[362239604,1748116245516,-587.87,0.00023287,2]
[362239606,1748116245525,-646.74,0.00023287,2]
[362239608,1748116245534,-430.0,0.00023287,2]
[362239610,1748116245544,-514.83,0.00023287,2]
[362239612,1748116245553,-430.0,0.00023287,2]
[362239614,1748116245563,-574.54,0.00023287,2]
[362239616,1748116245573,-430.0,0.00023287,2]
[362239618,1748116245582,-818.53,0.00023287,2]
[362239620,1748116245592,-1642.69105689,0.00023318,2]
[362239622,1748116245602,-226.5,0.00023561,2]
[362239624,1748116245612,-434.16,0.00023561,2]
[362239627,1748116245622,-430.0,0.00023561,2]
[362239630,1748116245632,-479.21,0.00023561,2]
[362239632,1748116245642,-430.0,0.00023561,2]
[362239634,1748116245652,-730.03,0.00023561,2]
[362239636,1748116245662,-482.29,0.00023561,2]
[362239638,1748116245671,-430.0,0.00023561,2]
[362239640,1748116245681,-430.0,0.00023561,2]
[362239643,1748116245692,-639.39,0.00023561,2]
[362239645,1748116245701,-430.0,0.00023561,2]
[362239647,1748116245710,-430.0,0.00023561,2]
[362239649,1748116245720,-545.66,0.00023561,2]
[362239651,1748116245730,-430.0,0.00023561,2]
[362239653,1748116245740,-430.0,0.00023561,2]
[362239655,1748116245750,-430.0,0.00023561,2]
[362239657,1748116245760,-543.63,0.00023561,2]
[362239659,1748116245770,-461.19,0.00023561,2]
[362239661,1748116245779,-723.01,0.00023561,2]
[362239663,1748116245789,-430.0,0.00023561,2]
[362239665,1748116245799,-430.0,0.00023561,2]
[362239667,1748116245809,-430.0,0.00023561,2]
[362239669,1748116245818,-430.0,0.00023561,2]
[362239672,1748116245827,-265.52961515,0.00023561,2]
[362239674,1748116245837,-430.0,0.00023561,2]
[362239676,1748116245847,-779.45,0.00023561,2]
[362239678,1748116245856,-430.0,0.00023561,2]
[362239680,1748116245866,-672.93,0.00023561,2]
[362239682,1748116245875,-430.0,0.00023561,2]
[362239684,1748116245885,-1083.96,0.00023561,2]
[362239686,1748116245894,-686.62,0.00023561,2]
[362239688,1748116245904,-787.43,0.00023561,2]
[362239690,1748116245913,-937.32,0.00023561,2]
[362239692,1748116245922,-717.95,0.00023561,2]
[362239694,1748116245932,-1787.91,0.00023561,2]
[362239696,1748116245941,-468.11,0.00023561,2]
[362239698,1748116245951,-430.0,0.00023561,2]
[362239700,1748116245961,-554.34,0.00023561,2]
[362239702,1748116245972,-587.87,0.00023561,2]
[362239704,1748116245982,-646.74,0.00023561,2]
[362239706,1748116245991,-430.0,0.00023561,2]
[362239708,1748116246001,-514.83,0.00023561,2]
[362239710,1748116246010,-430.0,0.00023561,2]
[362239712,1748116246020,-574.54,0.00023561,2]
[362239724,1748116246129,-430.0,0.00023561,2]
[362239726,1748116246140,-818.53,0.00023561,2]
[362239728,1748116246150,-707.0,0.0002357,2]
[362239730,1748116246162,-2234.0,0.0002357,2]
[362239732,1748116246172,-2000.0,0.00023616,2]
[362239734,1748116246182,-434.16,0.00023835,2]
[362239736,1748116246191,-430.0,0.00023835,2]
[362239738,1748116246202,-479.21,0.00023835,2]
[362239740,1748116246212,-430.0,0.00023835,2]
[362239742,1748116246222,-730.03,0.00023835,2]
[362239744,1748116246232,-482.29,0.00023835,2]
[362239746,1748116246241,-430.0,0.00023835,2]
[362239748,1748116246251,-430.0,0.00023835,2]
[362239750,1748116246260,-639.39,0.00023835,2]
[362239752,1748116246272,-430.0,0.00023835,2]
[362239754,1748116246281,-430.0,0.00023835,2]
[362239756,1748116246291,-545.66,0.00023835,2]
[362239758,1748116246300,-430.0,0.00023835,2]
[362239760,1748116246310,-575.46,0.00023835,2]
[362239762,1748116246320,-430.0,0.00023835,2]
[362239763,1748116246330,-543.63,0.00023835,2]
[362239765,1748116246340,-461.19,0.00023835,2]
[362239767,1748116246351,-723.01,0.00023835,2]
[362239769,1748116246361,-430.0,0.00023835,2]
[362239771,1748116246371,-430.0,0.00023835,2]
[362239773,1748116246382,-373.70820533,0.00023835,2]
[362239775,1748116246392,-430.0,0.00023835,2]
[362239777,1748116246401,-779.45,0.00023835,2]
[362239779,1748116246411,-430.0,0.00023835,2]
[362239781,1748116246422,-672.93,0.00023835,2]
[362239783,1748116246431,-430.0,0.00023835,2]
[362239785,1748116246441,-1083.96,0.00023835,2]
[362239787,1748116246451,-686.62,0.00023835,2]
[362239789,1748116246461,-787.43,0.00023835,2]
[362239791,1748116246470,-937.32,0.00023835,2]
[362239793,1748116246480,-717.95,0.00023835,2]
[362239795,1748116246490,-1787.91,0.00023835,2]
[362239797,1748116246499,-468.11,0.00023835,2]
[362239799,1748116246509,-430.0,0.00023835,2]
[362239801,1748116246519,-554.34,0.00023835,2]
[362239803,1748116246528,-587.87,0.00023835,2]
[362239805,1748116246538,-646.74,0.00023835,2]
[362239807,1748116246547,-430.0,0.00023835,2]
[362239809,1748116246556,-514.83,0.00023835,2]
[362239811,1748116246566,-430.0,0.00023835,2]
[362239813,1748116246575,-574.54,0.00023835,2]
[362239815,1748116246584,-430.0,0.00023835,2]
[362239817,1748116246594,-818.53,0.00023835,2]
[362239819,1748116246604,-969.43480473,0.000239,2]
[362239821,1748116246615,-215.0738,0.00024041,2]
[362239823,1748116246624,-1642.69105689,0.00024069,2]
[362239825,1748116246634,-434.16,0.00024109,2]
[362239827,1748116246644,-430.0,0.00024109,2]
[362239829,1748116246653,-479.21,0.00024109,2]
[362239831,1748116246663,-430.0,0.00024109,2]
[362239833,1748116246673,-730.03,0.00024109,2]
[362239836,1748116246683,-482.29,0.00024109,2]
[362239838,1748116246692,-430.0,0.00024109,2]
[362239839,1748116246702,-430.0,0.00024109,2]
[362239841,1748116246712,-639.39,0.00024109,2]
[362239843,1748116246722,-430.0,0.00024109,2]
[362239845,1748116246732,-430.0,0.00024109,2]
[362239847,1748116246741,-545.66,0.00024109,2]
[362239849,1748116246751,-430.0,0.00024109,2]
[362239852,1748116246762,-430.0,0.00024109,2]
[362239854,1748116246772,-543.63,0.00024109,2]
[362239855,1748116246782,-461.19,0.00024109,2]
[362239857,1748116246791,-723.01,0.00024109,2]
[362239859,1748116246802,-430.0,0.00024109,2]
[362239861,1748116246811,-430.0,0.00024109,2]
[362239863,1748116246821,-430.0,0.00024109,2]
[362239865,1748116246831,-779.45,0.00024109,2]
[362239867,1748116246841,-430.0,0.00024109,2]
[362239869,1748116246851,-672.93,0.00024109,2]
[362239871,1748116246861,-430.0,0.00024109,2]
[362239873,1748116246871,-1083.96,0.00024109,2]
[362239875,1748116246880,-686.62,0.00024109,2]
[362239877,1748116246890,-787.43,0.00024109,2]
[362239879,1748116246899,-937.32,0.00024109,2]
[362239881,1748116246909,-717.95,0.00024109,2]
[362239883,1748116246919,-1787.91,0.00024109,2]
[362239885,1748116246928,-468.11,0.00024109,2]
[362239887,1748116246938,-430.0,0.00024109,2]
[362239889,1748116246947,-554.34,0.00024109,2]
[362239891,1748116246957,-587.87,0.00024109,2]
[362239893,1748116246966,-646.74,0.00024109,2]
[362239895,1748116246975,-430.0,0.00024109,2]
[362239896,1748116246985,-514.83,0.00024109,2]
[362239898,1748116246994,-430.0,0.00024109,2]
[362239900,1748116247004,-574.54,0.00024109,2]
[362239902,1748116247014,-430.0,0.00024109,2]
[362239904,1748116247023,-818.53,0.00024109,2]
[362239906,1748116247033,-1474.59717618,0.00024164,2]
[362239908,1748116247042,-700.0,0.00024256,2]
[362239910,1748116247052,-434.16,0.00024383,2]
[362239912,1748116247062,-396.75756838,0.00024383,2]
[362239914,1748116247071,-479.21,0.00024383,2]
[362239916,1748116247081,-430.0,0.00024383,2]
[362239918,1748116247090,-730.03,0.00024383,2]
[362239920,1748116247101,-482.29,0.00024383,2]
[362239922,1748116247111,-430.0,0.00024383,2]
[362239923,1748116247120,-430.0,0.00024383,2]
[362239925,1748116247129,-639.39,0.00024383,2]
[362239927,1748116247139,-430.0,0.00024383,2]
[362239929,1748116247150,-430.0,0.00024383,2]
[362239931,1748116247162,-545.66,0.00024383,2]
[362239933,1748116247171,-430.0,0.00024383,2]
[362239935,1748116247181,-430.0,0.00024383,2]
[362239937,1748116247191,-543.63,0.00024383,2]
[362239939,1748116247201,-461.19,0.00024383,2]
[362239941,1748116247210,-723.01,0.00024383,2]
[362239943,1748116247220,-430.0,0.00024383,2]
[362239945,1748116247231,-430.0,0.00024383,2]
[362239947,1748116247240,-430.0,0.00024383,2]
[362239949,1748116247249,-779.45,0.00024383,2]
[362239951,1748116247259,-430.0,0.00024383,2]
[362239953,1748116247269,-672.93,0.00024383,2]
[362239955,1748116247278,-430.0,0.00024383,2]
[362239957,1748116247287,-1083.96,0.00024383,2]
[362239959,1748116247297,-686.62,0.00024383,2]
[362239961,1748116247306,-787.43,0.00024383,2]
[362239963,1748116247316,-937.32,0.00024383,2]
[362239964,1748116247326,-717.95,0.00024383,2]
[362239966,1748116247335,-1787.91,0.00024383,2]
[362239968,1748116247345,-468.11,0.00024383,2]
[362239970,1748116247355,-430.0,0.00024383,2]
[362239972,1748116247364,-554.34,0.00024383,2]
[362239974,1748116247375,-587.87,0.00024383,2]
[362239976,1748116247385,-646.74,0.00024383,2]
[362239978,1748116247394,-430.0,0.00024383,2]
[362239980,1748116247403,-514.83,0.00024383,2]
[362239982,1748116247413,-430.0,0.00024383,2]
[362239984,1748116247422,-574.54,0.00024383,2]
[362239986,1748116247432,-430.0,0.00024383,2]
[362239988,1748116247441,-818.53,0.00024383,2]
[362239990,1748116247451,-500.0,0.00024481,2]
[362239992,1748116247459,-729.134948,0.000245,2]
[362239994,1748116247468,-615.5835344,0.00024524,2]
[362239996,1748116247478,-434.16,0.00024657,2]
[362239997,1748116247488,-479.21,0.00024657,2]
[362239999,1748116247498,-430.0,0.00024657,2]
[362240001,1748116247507,-730.03,0.00024657,2]
[362240003,1748116247516,-482.29,0.00024657,2]
[362240005,1748116247526,-430.0,0.00024657,2]
[362240007,1748116247536,-430.0,0.00024657,2]
[362240009,1748116247545,-639.39,0.00024657,2]
[362240011,1748116247555,-430.0,0.00024657,2]
[362240013,1748116247564,-430.0,0.00024657,2]
[362240015,1748116247573,-545.66,0.00024657,2]
[362240017,1748116247583,-430.0,0.00024657,2]
[362240019,1748116247593,-430.0,0.00024657,2]
[362240021,1748116247602,-543.63,0.00024657,2]
[362240023,1748116247611,-461.19,0.00024657,2]
[362240025,1748116247621,-723.01,0.00024657,2]
[362240027,1748116247630,-430.0,0.00024657,2]
[362240029,1748116247640,-430.0,0.00024657,2]
[362240031,1748116247649,-433.62854735,0.00024657,2]
[362240033,1748116247658,-779.45,0.00024657,2]
[362240035,1748116247668,-430.0,0.00024657,2]
[362240037,1748116247678,-672.93,0.00024657,2]
[362240038,1748116247688,-430.0,0.00024657,2]
[362240040,1748116247697,-1083.96,0.00024657,2]
[362240043,1748116247706,-686.62,0.00024657,2]
[362240045,1748116247716,-787.43,0.00024657,2]
[362240047,1748116247725,-937.32,0.00024657,2]
[362240049,1748116247734,-717.95,0.00024657,2]
[362240051,1748116247743,-1787.91,0.00024657,2]
[362240053,1748116247752,-468.11,0.00024657,2]
[362240055,1748116247761,-1502.31,0.00024657,4]
[362240057,1748116247771,-430.0,0.00024657,2]
[362240059,1748116247780,-554.34,0.00024657,2]
[362240061,1748116247790,-587.87,0.00024657,2]
[362240062,1748116247800,-646.74,0.00024657,2]
[362240064,1748116247809,-430.0,0.00024657,2]
[362240066,1748116247818,-514.83,0.00024657,2]
[362240068,1748116247827,-430.0,0.00024657,2]
[362240070,1748116247837,-574.54,0.00024657,2]
[362240072,1748116247846,-430.0,0.00024657,2]
[362240074,1748116247856,-818.53,0.00024657,2]
[362240076,1748116247865,-587.0,0.00024671,2]
[362240078,1748116247875,-15836.47,0.000247,2]
[362240080,1748116247884,-205.0,0.0002471,2]
[362240082,1748116247893,-500.0,0.00024713,2]
[362240084,1748116247902,-1642.69105689,0.00024819,2]
[362240086,1748116247911,-264.337282,0.00024821,2]
[362240088,1748116247922,-615.58353441,0.00024837,2]
[362240090,1748116247931,-500.0,0.00024873,2]
[362240092,1748116247939,-500.0,0.00024873,2]
[362240094,1748116247947,-500.0,0.00024873,2]
[362240096,1748116247956,-500.0,0.00024873,2]
[362240098,1748116247965,-500.0,0.00024873,2]
[362240100,1748116247974,-500.0,0.00024873,2]
[362240102,1748116247984,-500.0,0.00024873,2]
[362240112,1748116248075,-500.0,0.00024873,2]
[362240114,1748116248085,-500.0,0.00024873,2]
[362240116,1748116248095,-500.0,0.00024873,2]
[362240118,1748116248105,-600.0,0.00024873,2]
[362240120,1748116248115,-500.0,0.00024873,2]
[362240122,1748116248124,-500.0,0.00024873,2]
[362240124,1748116248133,-500.0,0.00024873,2]
[362240126,1748116248142,-500.0,0.00024873,2]
[362240128,1748116248155,-500.0,0.00024873,2]
[362240130,1748116248165,-500.0,0.00024873,2]
[362240132,1748116248173,-500.0,0.00024873,2]
[362240134,1748116248183,-500.0,0.00024873,2]
[362240135,1748116248192,-500.0,0.00024873,2]
[362240137,1748116248202,-500.0,0.00024873,2]
[362240139,1748116248211,-500.0,0.00024873,2]
[362240141,1748116248220,-500.0,0.00024873,2]
[362240143,1748116248231,-500.0,0.00024873,2]
[362240145,1748116248240,-500.0,0.00024873,2]
[362240147,1748116248250,-500.0,0.00024873,2]
[362240149,1748116248259,-500.0,0.00024873,2]
[362240151,1748116248268,-500.0,0.00024873,2]
[362240153,1748116248278,-500.0,0.00024873,2]
[362240155,1748116248288,-500.0,0.00024873,2]
[362240156,1748116248298,-621.11190769,0.00024873,2]
[362240158,1748116248308,-1025.0,0.000249,2]
[362240160,1748116248317,-1025.0,0.000249,2]
[362240162,1748116248327,-1025.0,0.000249,2]
[362240164,1748116248337,-1025.0,0.000249,2]
[362240166,1748116248347,-1025.0,0.000249,2]
[362240168,1748116248357,-1025.0,0.000249,2]
[362240170,1748116248367,-1025.0,0.000249,2]
[362240172,1748116248376,-1025.0,0.000249,2]
[362240174,1748116248386,-1025.0,0.000249,2]
[362240176,1748116248395,-1025.0,0.000249,2]
[362240178,1748116248406,-2678.16,0.000249,2]
[362240180,1748116248416,-347901.864788,0.000249,2]
[362240182,1748116248426,-434.16,0.00024931,2]
[362240184,1748116248435,-479.21,0.00024931,2]
[362240186,1748116248445,-430.0,0.00024931,2]
[362240187,1748116248454,-730.03,0.00024931,2]
[362240189,1748116248464,-482.29,0.00024931,2]
[362240191,1748116248474,-430.0,0.00024931,2]
[362240193,1748116248483,-430.0,0.00024931,2]
[362240195,1748116248492,-639.39,0.00024931,2]
[362240197,1748116248502,-430.0,0.00024931,2]
[362240199,1748116248512,-545.66,0.00024931,2]
[362240201,1748116248522,-433.06089053,0.00024931,2]